{"text_format":"1","workbook":"xlsx","n_sheets":31,"sheets":["modProv","modList00","modList01","modList02","Инструкция","Лог обновления","Титульный","Список МО","Стандарты","Ссылки на публикации","Комментарии","Проверка","AllSheetsInThisWorkbook","TEHSHEET","et_union_hor","et_union_vert","modInfo","modRegion","modReestr","modfrmReestr","modUpdTemplMain","REESTR_ORG","modClassifierValidate","modHyp","modList03","modfrmDateChoose","modComm","modThisWorkbook","REESTR_MO","modfrmReestrMR","modfrmCheckUpdates"],"not_rendered":{"charts":0,"images":17,"macros":1,"external_links":0,"defined_names":135,"comments":0,"pivot_tables":0},"unopened":[],"bounds":{"document_bytes":16777216,"sheet_cells":100000,"rows_first":2000,"rows_last":500,"rows_between":2000,"halvings":0,"cell_chars":16384,"cell_head_chars":4096},"cells_cut":0,"cells_raw":0,"read":"whole","date_system":"1900"}

{"sheet":"modProv","index":0,"n_rows":0,"n_cols":0,"rows_kept":0,"cut":false,"hidden":true,"merged":[]}

{"sheet":"modList00","index":1,"n_rows":0,"n_cols":0,"rows_kept":0,"cut":false,"hidden":true,"merged":[]}

{"sheet":"modList01","index":2,"n_rows":0,"n_cols":0,"rows_kept":0,"cut":false,"hidden":true,"merged":[]}

{"sheet":"modList02","index":3,"n_rows":0,"n_cols":0,"rows_kept":0,"cut":false,"hidden":true,"merged":[]}

{"sheet":"Инструкция","index":4,"n_rows":102,"n_cols":27,"rows_kept":102,"cut":false,"hidden":false,"merged":[[1,1,1,6],[2,1,2,2],[4,1,4,24],[6,4,18,23],[20,5,20,12],[20,15,20,23],[58,7,58,23],[21,15,21,23],[34,4,38,23],[59,7,59,23],[74,4,74,23],[59,4,59,6],[40,4,44,23],[45,4,56,23],[21,5,21,12],[22,15,22,22],[79,4,79,7],[57,7,57,23],[81,7,81,23],[39,4,39,23],[70,4,70,23],[60,7,60,23],[79,8,79,23],[76,4,76,23],[78,4,78,23],[57,4,57,6],[72,4,72,23],[58,4,58,6],[75,4,75,23],[73,4,73,23],[69,4,69,23],[71,4,71,23],[101,5,101,23],[99,5,99,18],[80,4,80,6],[80,7,80,23],[81,4,81,6],[82,7,82,23],[97,4,97,23],[82,4,82,6],[83,7,83,23]]}
[null,null,null,null,null,null,null,null,null,null,null,null,null,null,null,null,null,null,null,null,null,null,null,null,null,null," (требуется обновление)"]
[null,null,"JKH.OPEN.INFO.REQUEST.HVS"]
[]
[]
[null,"Предложение об установлении тарифов в сфере холодного водоснабжения и о способах приобретения, стоимости и объемах товаров, необходимых для производства регулируемых товаров и (или) оказания регулируемых услуг"]
[]
[null,null,null,null,"• На рабочем месте должен быть установлен MS Office 2007 SP3, 2010, 2013 с полной версией MS Excel\n\n• Макросы во время работы должны быть включены (!)\n\n• Для корректной работы отчёта требуется выбрать низкий уровень безопасности\n(В меню MS Excel: Параметры Excel | Центр управления безопасностью | Параметры центра управления безопасностью | Параметры макросов | Включить все макросы | ОК)\n\n• Не рекомендуется снимать защиту с листов и каким-либо образом модифицировать защищаемые формулы и расчётные поля, в противном случае, отчёт будет отклонён системой\n\n• При сохранении следует выбирать формат XLSM (Книга Excel)"]
[]
[]
[]
[]
[]
[]
[]
[]
[]
[]
[]
[]
[]
[null,null,null,null,"A"," - необязательные для заполнения",null,null,null,null,null,null,null,null,"A"," - с формулами и константами"]
[null,null,null,null,"A"," - обязательные для заполнения",null,null,null,null,null,null,null,null,"A"," - с выбором значений до двойному клику,"]
[null,null,null,null,null,null,null,null,null,null,null,null,null,null,null,"либо с возможностью выбора даты из календаря или ручного ввода"]
[]
[]
[]
[]
[]
[]
[]
[]
[]
[]
[]
[null,null,null,null,"Если в предложенном Вам списке необходимая организация, МР/МО отсутствуют, обновите реестры с помощью кнопок\n\nВ результате синхронизации с базой данных список организаций (МР/МО) будет заменён актуальным (механизм синхронизации требует подключения к сети Интернет и основан на использовании протокола HTTPS (TCP порт 443))\n\nЕсли после обновления Вам не удалось найти необходимую организацию в списке, обратитесь к ответственному за поддержание реестра Вашего региона. Информация о региональных органах регулирования доступна по ссылке:"]
[]
[]
[]
[]
[null,null,null,null,"http://www.fstrf.ru/regions/region/showlist"]
[]
[]
[]
[]
[]
[null,null,null,null,"• При сохранении шаблона осуществляется проверка корректности данных, в том числе на наличие значений в ячейках, обязательных для заполнения\n\n• Если какая-то ячейка не удовлетворяет условию проверки, на лист «Проверка» добавляется гиперссылка на данную ячейку и указывается причина ошибки\n\n• В колонке «Статус» для каждого сообщения возможны 2 значения: ошибка и предупреждение\n\n• При наличии сообщений со статусом «Ошибка» шаблон будет отклонён системой и не будет загружен в хранилище данных, сообщения со статусом «Предупреждение» носят информационный характер, и такой шаблон будет принят системой"]
[]
[]
[]
[]
[]
[]
[]
[]
[]
[]
[]
[null,null,null,null,"Web-сайт:",null,null,"http://support.eias.ru/index.php?a=add&catid=5"]
[null,null,null,null,"Дистрибутивы:",null,null,"http://eias.ru/?page=show_distrs"]
[null,null,null,null,null,null,null,"для устранения ошибок (например, \"Compile error in hidden module\")"]
[]
[]
[]
[]
[]
[]
[]
[]
[]
[null,null,null,null,"Принципы работы с шаблоном"]
[null,null,null,null," Перед началом работы с шаблоном Вам необходимо нажать кнопку \"Приступить к заполнению\", после чего в шаблоне отобразятся листы для заполнения."]
[null,null,null,null," На листе «Титульный» нужно заполнить все ячейки голубого и синего цвета.\n Для создания печатной формы нажмите на иконку принтера на листе «Титульный» (левый верхний угол)."]
[null,null,null,null," Гиперссылки на листах вводите, не нарушая цвет ячейки (если копируете гиперссылку из браузера, то выполните двойной щелчок левой кнопки мыши по ячейке и только после этого можете вставить скопированный элемент).\n"]
[null,null,null,null," При вводе даты на расчетных листах необходимо выбрать дату из календаря (иконка справа от выбранной ячейки), либо ввести дату непосредственно в ячейку в формате - 'ДД.ММ.ГГГГ'."]
[null,null,null,null," Если какой-либо из показателей на расчетных листах для Вашей организации отсутствует, введите в поле, обязательное для заполнение, «0» (для числовых показателей) и «-» (для текстовых).\n"]
[null,null,null,null," Внимательно следите за информационными сообщениями на расчетных листах."]
[null,null,null,null," Все необходимые комментарии по всем формам Вы можете отразить на листе «Комментарии»."]
[]
[]
[]
[]
[null,null,null,null,"E-mail:",null,null,"openinfo@eias.ru"]
[null,null,null,null,"Web-сайт:",null,null,"http://eias.ru/?page=show_templates"]
[]
[]
[]
[]
[]
[]
[]
[]
[]
[]
[]
[]
[]
[]
[null,null,null,null,"При наличии подключения к Интернет, можно автоматически проверять наличие доступных обновлений. Выберите способ оповещения о наличии обновлений для отчёта:"]
[]
[null,null,null,null,null,"проверять доступные обновления (рекомендуется)",null,null,null,null,null,null,null,null,null,null,null,null,null,null,null,null,null,null,null,null,"y"]
[]
[null,null,null,null,null,"никогда не проверять наличие обновлений (не рекомендуется)"]

{"sheet":"Лог обновления","index":5,"n_rows":76,"n_cols":3,"rows_kept":76,"cut":false,"hidden":true,"merged":[]}
["Дата/Время","Сообщение","Статус"]
[]
["2014-02-25T16:16:55","Проверка доступных обновлений...","Информация"]
["2014-02-25T16:16:55","Доступно обновление до версии 2.1.1","Информация"]
["2014-02-25T16:16:55","Описание изменений: Версия 2.1.1 (для шаблонов версии 2.1)\n1. Расширение значений поля \"Метод регулирования\" (п.1.2) на листе \"Стандарты\" значениями \"метод установления фиксированных тарифов\" и \"метод установления предельных тарифов\".\n\nДля шаблонов версии ниже 2.1 воспользуйтесь ссылкой: https://tariff.eias.ru/svn/templates/REGIONAL/RI/JKH.OPEN.INFO.REQUEST.HVS/trunk/JKH.OPEN.INFO.REQUEST.HVS.xls","Информация"]
["2014-02-25T16:16:55","Размер файла обновления: 242688 байт","Информация"]
["2014-02-25T16:16:57","Подготовка к обновлению...","Информация"]
["2014-02-25T16:17:03","Сохранение файла резервной копии: T:\\Упр. рег. в сфере КК\\Мониторинга и наблюдения организаций коммунальной сферы\\@Общая\\ЕИАС\\!!!! Шаблоны РЕГИОНАЛЬНЫЕ\\ГОТОВЫЕ ШАБЛОНЫ\\Раскрытие информации\\!!! Новые шаблоны\\ВС\\JKH.OPEN.INFO.REQUEST.HVS.BKP..xls","Информация"]
["2014-02-25T16:17:14","Резервная копия создана: T:\\Упр. рег. в сфере КК\\Мониторинга и наблюдения организаций коммунальной сферы\\@Общая\\ЕИАС\\!!!! Шаблоны РЕГИОНАЛЬНЫЕ\\ГОТОВЫЕ ШАБЛОНЫ\\Раскрытие информации\\!!! Новые шаблоны\\ВС\\JKH.OPEN.INFO.REQUEST.HVS.BKP..xls","Информация"]
["2014-02-25T16:17:14","Создание книги для установки обновлений...","Информация"]
["2014-02-25T16:17:14","Ошибка при инициализации обновления","Ошибка"]
["2014-02-25T16:17:27","Проверка доступных обновлений...","Информация"]
["2014-02-25T16:17:27","Доступно обновление до версии 2.1.1","Информация"]
["2014-02-25T16:17:27","Описание изменений: Версия 2.1.1 (для шаблонов версии 2.1)\n1. Расширение значений поля \"Метод регулирования\" (п.1.2) на листе \"Стандарты\" значениями \"метод установления фиксированных тарифов\" и \"метод установления предельных тарифов\".\n\nДля шаблонов версии ниже 2.1 воспользуйтесь ссылкой: https://tariff.eias.ru/svn/templates/REGIONAL/RI/JKH.OPEN.INFO.REQUEST.HVS/trunk/JKH.OPEN.INFO.REQUEST.HVS.xls","Информация"]
["2014-02-25T16:17:27","Размер файла обновления: 242688 байт","Информация"]
["2014-02-25T16:17:28","Подготовка к обновлению...","Информация"]
["2014-02-25T16:17:32","Сохранение файла резервной копии: T:\\Упр. рег. в сфере КК\\Мониторинга и наблюдения организаций коммунальной сферы\\@Общая\\ЕИАС\\!!!! Шаблоны РЕГИОНАЛЬНЫЕ\\ГОТОВЫЕ ШАБЛОНЫ\\Раскрытие информации\\!!! Новые шаблоны\\ВС\\JKH.OPEN.INFO.REQUEST.HVS.BKP..xls","Информация"]
["2014-02-25T16:17:41","Резервная копия создана: T:\\Упр. рег. в сфере КК\\Мониторинга и наблюдения организаций коммунальной сферы\\@Общая\\ЕИАС\\!!!! Шаблоны РЕГИОНАЛЬНЫЕ\\ГОТОВЫЕ ШАБЛОНЫ\\Раскрытие информации\\!!! Новые шаблоны\\ВС\\JKH.OPEN.INFO.REQUEST.HVS.BKP..xls","Информация"]
["2014-02-25T16:17:41","Создание книги для установки обновлений...","Информация"]
["2014-02-25T16:17:52","Файл обновления загружен: T:\\Упр. рег. в сфере КК\\Мониторинга и наблюдения организаций коммунальной сферы\\@Общая\\ЕИАС\\!!!! Шаблоны РЕГИОНАЛЬНЫЕ\\ГОТОВЫЕ ШАБЛОНЫ\\Раскрытие информации\\!!! Новые шаблоны\\ВС\\UPDATE.JKH.OPEN.INFO.REQUEST.HVS.TO.2.1.1.86.xls","Информация"]
["2014-02-25T16:18:04","Обновление завершилось удачно! Шаблон JKH.OPEN.INFO.REQUEST.HVS.BKP..xls сохранен под именем 'JKH.OPEN.INFO.REQUEST.HVS.BKP.(v2.1.1).xls'","Информация"]
["2014-04-22T14:51:46","Проверка доступных обновлений...","Информация"]
["2014-04-22T14:51:46","Доступно обновление до версии 2.1.3","Информация"]
["2014-04-22T14:51:46","Описание изменений: ! Обновление доступно для шаблонов версии 2.1 и выше\t\t\nдо версии 2.1.3\t\t\n1. скорректировано заполнение поля 'Условный порядковый номер' на листе 'Список МО';\t\t\n2. добавлена информации о соответствие форм приказа ФСТ России № 129 от 15 мая 2013 г. на листе 'Стандарты';\t\t\n3. добавлен показатель 'размер недополученных доходов регулируемой организацией (при их наличии), исчисленном в соответствии с основами ценообразования в сфере водоснабжения и водоотведения, утверждаемыми Правительством Российской Федерации, тыс руб' на листе 'Стандарты'\t\t\n\t\t\nдо версии 2.1.2\t\t\n1. скорректирована проверка при сохранении\t\t\n\t\t\nдо версии 2.1.1\t\t\n1. расширен список значений поля 'Метод регулирования' (п.1.2) на листе 'Стандарты'\n\nЕсли версия Вашего шаблона ниже 2.1, обратитесь к администратору Вашего субъекта РФ.","Информация"]
["2014-04-22T14:51:46","Размер файла обновления: 421888 байт","Информация"]
["2014-04-22T14:51:56","Подготовка к обновлению...","Информация"]
["2014-04-22T14:52:04","Сохранение файла резервной копии: C:\\Users\\Sergey.Merkurev\\Desktop\\Шаблоны 22.04.2014\\ВС\\JKH.OPEN.INFO.REQUEST.HVS.BKP..xls","Информация"]
["2014-04-22T14:52:10","Резервная копия создана: C:\\Users\\Sergey.Merkurev\\Desktop\\Шаблоны 22.04.2014\\ВС\\JKH.OPEN.INFO.REQUEST.HVS.BKP..xls","Информация"]
["2014-04-22T14:52:10","Создание книги для установки обновлений...","Информация"]
["2014-04-22T14:52:19","Файл обновления загружен: C:\\Users\\Sergey.Merkurev\\Desktop\\Шаблоны 22.04.2014\\ВС\\UPDATE.JKH.OPEN.INFO.REQUEST.HVS.TO.2.1.3.65.xls","Информация"]
["2014-04-22T14:52:29","Обновление завершилось удачно! Шаблон JKH.OPEN.INFO.REQUEST.HVS.xls сохранен под именем 'JKH.OPEN.INFO.REQUEST.HVS(v2.1.3).xls'","Информация"]
["2014-04-22T14:53:23","Проверка доступных обновлений...","Информация"]
["2014-04-22T14:53:23","Версия шаблона 2.1.3 актуальна, обновление не требуется","Информация"]
["2014-05-13T09:10:34","Проверка доступных обновлений...","Информация"]
["2014-05-13T09:10:34","Доступно обновление до версии 2.1.4","Информация"]
["2014-05-13T09:10:34","Описание изменений: ! Обновление доступно для шаблонов версии 2.1 и выше\n\nдо версии 2.1.4\n1. скорректирована работа с полем 'Тариф' на листе 'Титульный' (в части отображения двухставочного тарифа)\t\n\nдо версии 2.1.3\t\t\n1. скорректировано заполнение поля 'Условный порядковый номер' на листе 'Список МО';\t\t\n2. добавлена информации о соответствие форм приказа ФСТ России № 129 от 15 мая 2013 г. на листе 'Стандарты';\t\t\n3. добавлен показатель 'размер недополученных доходов регулируемой организацией (при их наличии), исчисленном в соответствии с основами ценообразования в сфере водоснабжения и водоотведения, утверждаемыми Правительством Российской Федерации, тыс руб' на листе 'Стандарты'\t\t\n\t\t\nдо версии 2.1.2\t\t\n1. скорректирована проверка при сохранении\t\t\n\t\t\nдо версии 2.1.1\t\t\n1. расширен список значений поля 'Метод регулирования' (п.1.2) на листе 'Стандарты'\n\nЕсли версия Вашего шаблона ниже 2.1, обратитесь к администратору Вашего субъекта РФ.","Информация"]
["2014-05-13T09:10:34","Размер файла обновления: 433152 байт","Информация"]
["2014-05-13T09:10:37","Подготовка к обновлению...","Информация"]
["2014-05-13T09:10:40","Сохранение файла резервной копии: C:\\Users\\Sergey.Merkurev\\Desktop\\1111111111111111111\\JKH.OPEN.INFO.REQUEST.HVS(3).BKP..xls","Информация"]
["2014-05-13T09:10:46","Резервная копия создана: C:\\Users\\Sergey.Merkurev\\Desktop\\1111111111111111111\\JKH.OPEN.INFO.REQUEST.HVS(3).BKP..xls","Информация"]
["2014-05-13T09:10:46","Создание книги для установки обновлений...","Информация"]
["2014-05-13T09:10:53","Файл обновления загружен: C:\\Users\\Sergey.Merkurev\\Desktop\\1111111111111111111\\UPDATE.JKH.OPEN.INFO.REQUEST.HVS.TO.2.1.4.70.xls","Информация"]
["2014-05-13T09:11:02","Обновление завершилось удачно! Шаблон JKH.OPEN.INFO.REQUEST.HVS(3).xls сохранен под именем 'JKH.OPEN.INFO.REQUEST.HVS(3)(v2.1.4).xls'","Информация"]
["2014-05-13T09:43:50","Проверка доступных обновлений...","Информация"]
["2014-05-13T09:43:51","Версия шаблона 2.1.4 актуальна, обновление не требуется","Информация"]
["2016-10-14T12:31:13","Проверка доступных обновлений...","Информация"]
["2016-10-14T12:31:14","Доступно обновление до версии 2.1.5","Информация"]
["2016-10-14T12:31:14","Описание изменений: ! Обновление доступно для шаблонов версии 2.1 и выше\n\nдо версии 2.1.5\n1. скорректированы формулировки на листе 'Стандарты' согласно нормативно-правовым актам\n\nдо версии 2.1.4\n1. скорректирована работа с полем 'Тариф' на листе 'Титульный' (в части отображения двухставочного тарифа)\t\n\nдо версии 2.1.3\t\t\n1. скорректировано заполнение поля 'Условный порядковый номер' на листе 'Список МО';\t\t\n2. добавлена информации о соответствие форм приказа ФСТ России № 129 от 15 мая 2013 г. на листе 'Стандарты';\t\t\n3. добавлен показатель 'размер недополученных доходов регулируемой организацией (при их наличии), исчисленном в соответствии с основами ценообразования в сфере водоснабжения и водоотведения, утверждаемыми Правительством Российской Федерации, тыс руб' на листе 'Стандарты'\t\t\n\t\t\nдо версии 2.1.2\t\t\n1. скорректирована проверка при сохранении\t\t\n\t\t\nдо версии 2.1.1\t\t\n1. расширен список значений поля 'Метод регулирования' (п.1.2) на листе 'Стандарты'\n\nЕсли версия Вашего шаблона ниже 2.1, обратитесь к администратору Вашего субъекта РФ.","Информация"]
["2016-10-14T12:31:14","Размер файла обновления: 612864 байт","Информация"]
["2016-10-14T12:31:16","Подготовка к обновлению...","Информация"]
["2016-10-14T12:31:21","Сохранение файла резервной копии: C:\\Users\\isekeeva\\Desktop\\эбжэ.BKP.xls","Информация"]
["2016-10-14T12:31:23","Резервная копия создана: C:\\Users\\isekeeva\\Desktop\\эбжэ.BKP.xls","Информация"]
["2016-10-14T12:31:23","Создание книги для установки обновлений...","Информация"]
["2016-10-14T12:31:26","Файл обновления загружен: C:\\Users\\isekeeva\\Desktop\\Шаблоны для РЭКа\\ХВС\\UPDATE.JKH.OPEN.INFO.REQUEST.HVS.TO.2.1.5.84.xls","Информация"]
["2016-11-18T18:26:08","Проверка доступных обновлений...","Информация"]
["2016-11-18T18:26:09","Версия шаблона 2.1.5 актуальна, обновление не требуется","Информация"]
["2016-11-18T18:26:31","Проверка доступных обновлений...","Информация"]
["2016-11-18T18:26:31","Версия шаблона 2.1.5 актуальна, обновление не требуется","Информация"]
["2016-11-18T18:43:39","Проверка доступных обновлений...","Информация"]
["2016-11-18T18:43:40","Версия шаблона 2.1.5 актуальна, обновление не требуется","Информация"]
["2016-11-20T14:20:41","Проверка доступных обновлений...","Информация"]
["2016-11-20T14:20:42","Версия шаблона 2.1.5 актуальна, обновление не требуется","Информация"]
["2016-11-20T14:37:19","Проверка доступных обновлений...","Информация"]
["2016-11-20T14:37:19","Версия шаблона 2.1.5 актуальна, обновление не требуется","Информация"]
["2016-11-20T14:44:00","Проверка доступных обновлений...","Информация"]
["2016-11-20T14:44:01","Версия шаблона 2.1.5 актуальна, обновление не требуется","Информация"]
["2016-11-20T14:45:42","Проверка доступных обновлений...","Информация"]
["2016-11-20T14:45:43","Версия шаблона 2.1.5 актуальна, обновление не требуется","Информация"]
["2016-11-20T15:04:50","Проверка доступных обновлений...","Информация"]
["2016-11-20T15:04:51","Версия шаблона 2.1.5 актуальна, обновление не требуется","Информация"]
["2016-11-20T15:10:00","Проверка доступных обновлений...","Информация"]
["2016-11-20T15:10:01","Версия шаблона 2.1.5 актуальна, обновление не требуется","Информация"]
["2016-12-16T10:21:43","Проверка доступных обновлений...","Информация"]
["2016-12-16T10:21:43","Версия шаблона 2.1.5 актуальна, обновление не требуется","Информация"]
["2018-05-03T14:49:38","Проверка доступных обновлений...","Информация"]
["2018-05-03T14:49:40","Нет доступных обновлений для шаблона с кодом JKH.OPEN.INFO.REQUEST.HVS!","Информация"]

{"sheet":"Титульный","index":6,"n_rows":54,"n_cols":6,"rows_kept":54,"cut":false,"hidden":false,"merged":[[4,4,4,5]]}
[]
[]
[]
[null,null,null,null,null,"01.01.2016"]
[null,null,null,null,"Предложение об установлении тарифов в сфере холодного водоснабжения и о способах приобретения, стоимости и объемах товаров, необходимых для производства регулируемых товаров и (или) оказания регулируемых услуг"]
[]
[null,null,null,null,"Субъект РФ","Рязанская область"]
[]
[null,null,null,null,"Публикация","На сайте регулирующего органа"]
[]
[null,null,null,null,"По желанию организации информация раскрыта в дополнительных источниках публикации?","нет"]
[]
["нет",null,null,null,"Указывать разбивку НВВ по полугодиям","нет"]
[]
[null,null,null,null,null,"Период регулирования"]
["01.01.2019",null,null,null,"Начало очередного периода регулирования","01.01.2019"]
["31.12.2020",null,null,null,"Окончание очередного периода регулирования","31.12.2020"]
[]
[null,null,null,null,"Является ли данное юридическое лицо подразделением (филиалом) другой организации","да"]
[]
[null,null,null,null,"Наименование организации","ПУБЛИЧНОЕ АКЦИОНЕРНОЕ ОБЩЕСТВО \"ВТОРАЯ ГЕНЕРИРУЮЩАЯ КОМПАНИЯ ОПТОВОГО РЫНКА ЭЛЕКТРОЭНЕРГИИ\""]
[null,null,null,null,"Наименование филиала","филиал ПАО \"ОГК-2\" - Рязанская ГРЭС"]
[null,null,null,null,"ИНН","2607018122"]
[null,null,null,null,"КПП","621143001"]
[]
[null,null,null,null,"Вид деятельности","Холодное водоснабжение"]
[]
[null,null,null,null,"Режим налогообложения","общий"]
[]
[null,null,null,null,"Организация выполняет/планирует к выполнению инвестиционную программу","нет"]
[]
["тариф на питьевую воду (питьевое водоснабжение)",null,null,null,"Тариф","тариф на питьевую воду (питьевое водоснабжение)"]
[]
[null,null,null,null,"Наличие двухставочного тарифа","нет"]
[]
[null,null,null,null,"НДС (Отметка об учтенном НДС)","тариф указан без НДС для плательщиков НДС"]
[]
[null,null,null,null,null,"Адрес регулируемой организации"]
[null,null,null,null,"Юридический адрес","356126, КРАЙ СТАВРОПОЛЬСКИЙ, "]
[null,null,null,null,"Почтовый адрес","196140, Санкт-Петербург, Петербургское, д.66, к.1"]
[]
[null,null,null,null,null,"Руководитель"]
[null,null,null,null,"Фамилия, имя, отчество","Тимофеев Павел Вячеславович"]
[null,null,null,null,"(код) номер телефона","(49141)4-18-21"]
[]
[null,null,null,null,null,"Главный бухгалтер"]
[null,null,null,null,"Фамилия, имя, отчество","Левушкина Елена Валентиновна"]
[null,null,null,null,"(код) номер телефона","(49141)4-22-26"]
[]
[null,null,null,null,null,"Должностное лицо, ответственное за составление формы"]
[null,null,null,null,"Фамилия, имя, отчество","Яшунина Татьяна Николаевна"]
[null,null,null,null,"Должность","ведущий экономист по планированию"]
[null,null,null,null,"(код) номер телефона","8(49141)45-108"]
[null,null,null,null,"e-mail","Yashunina.Tatyana@rgr.ogk2.ru"]

{"sheet":"Список МО","index":7,"n_rows":16,"n_cols":8,"rows_kept":16,"cut":false,"hidden":false,"merged":[[13,3,14,3],[13,4,14,4],[3,3,3,7],[4,3,4,7],[6,5,6,7],[7,5,7,7],[8,5,8,7]]}
[]
[]
[]
[null,null,null,"Дифференциация тарифа"]
[null,null,null,"ПУБЛИЧНОЕ АКЦИОНЕРНОЕ ОБЩЕСТВО \"ВТОРАЯ ГЕНЕРИРУЮЩАЯ КОМПАНИЯ ОПТОВОГО РЫНКА ЭЛЕКТРОЭНЕРГИИ\""]
[]
[null,null,null,null,null,"Система коммунальной инфраструктуры"]
[null,null,null,null,"Условный порядковый номер",1]
[null,null,null,null,"Описание","1"]
[]
[null,null,null,"№ п/п","Муниципальный район","№ п/п","Муниципальное образование","ОКТМО"]
[null,null,null,"1","2","3","4","5"]
[null,null,null,0,null,0]
[null,null,"О",1,"Пронский муниципальный район",1,"Новомичуринское","61625114"]
[null,null,null,null,null,null,"Добавить МО"]
[null,null,null,null,"Добавить МР"]

{"sheet":"Стандарты","index":8,"n_rows":40,"n_cols":8,"rows_kept":40,"cut":false,"hidden":false,"merged":[[16,0,18,0],[16,1,18,1],[19,0,21,0],[19,1,21,1],[41,4,41,7],[4,3,4,7],[5,3,5,7]]}
[]
[]
[]
[null,null,null,null,null,null,null,"Приложение 2 к приказу ФСТ России от 15 мая 2013 г. N 129, Форма 2.13, Форма 2.14"]
[null,null,null,"Предложение об установлении тарифов в сфере холодного водоснабжения и о способах приобретения, стоимости и объемах товаров, необходимых для производства регулируемых товаров и (или) оказания регулируемых услуг"]
[null,null,null,"ПУБЛИЧНОЕ АКЦИОНЕРНОЕ ОБЩЕСТВО \"ВТОРАЯ ГЕНЕРИРУЮЩАЯ КОМПАНИЯ ОПТОВОГО РЫНКА ЭЛЕКТРОЭНЕРГИИ\""]
[]
[null,null,null,"№ п/п","Информация, подлежащая раскрытию","Значение","Ссылки на документы","Примечание"]
[null,null,null,"1","2","3","4","5"]
[null,null,null,"1","Информация о предложении регулируемой организации об установлении тарифов в сфере холодного водоснабжения на очередной период регулирования",null,null,0]
[null,null,null,"1.1","Копия утвержденной в установленном порядке инвестиционной программы (проекта инвестиционной программы)"]
[null,null,null,"1.2","Предлагаемый метод регулирования",null,null,0]
[null,"О",null,"1.2.1","с 01.01.2019 по 31.12.2019","метод индексации установленных тарифов",null,"0"]
[null,"О",null,"1.2.2","с 01.01.2020 по 31.12.2020","метод индексации установленных тарифов",null,"0"]
[null,null,null,null,"Предлагаемый метод регулирования"]
[null,null,null,"1.3","Расчетная величина тарифов",null,null,0]
["1.3.1","О",null,{"$f":"A17","v":"1.3.1"},{"$f":"\"с 01.01.2019 по 31.12.2019\" & IF(double_rate_tariff=\"да\",,\", \"&unit_tariff_single_rate)","v":"с 01.01.2019 по 31.12.2019, руб/м3"},231.01,null,"0"]
[null,null,null,{"$f":"D17&\".1\"","v":"1.3.1.1"},{"$f":"TEHSHEET!$U$2&\", \" & unit_tariff_double_rate_p","v":"потребление, руб/м3"}]
[null,null,null,{"$f":"D17&\".2\"","v":"1.3.1.2"},{"$f":"TEHSHEET!$V$2&\", \" & unit_tariff_double_rate_c","v":"содержание,  тыс руб в месяц/м3/час"}]
["1.3.2","О",null,{"$f":"A20","v":"1.3.2"},{"$f":"\"с 01.01.2020 по 31.12.2020\" & IF(double_rate_tariff=\"да\",,\", \"&unit_tariff_single_rate)","v":"с 01.01.2020 по 31.12.2020, руб/м3"},238.1,null,"0"]
[null,null,null,{"$f":"D20&\".1\"","v":"1.3.2.1"},{"$f":"TEHSHEET!$U$2&\", \" & unit_tariff_double_rate_p","v":"потребление, руб/м3"}]
[null,null,null,{"$f":"D20&\".2\"","v":"1.3.2.2"},{"$f":"TEHSHEET!$V$2&\", \" & unit_tariff_double_rate_c","v":"содержание,  тыс руб в месяц/м3/час"}]
[null,null,null,null,"Расчетная величина тарифов"]
[null,null,null,"1.4","Период действия тарифов",{"$f":"\"с \"&periodStart & \" по \" & periodEnd & \" гг.\"","v":"с 01.01.2019 по 31.12.2020 гг."},null,"0"]
[null,null,null,"1.5","Сведения о долгосрочных параметрах регулирования (в случае если их установление предусмотрено выбранным методом регулирования)","http://www.ogk2.ru/rus/si/infodisclosure/disclosureinstand/1140/Ryazanskaya/","http://www.ogk2.ru/rus/si/infodisclosure/disclosureinstand/1140/Ryazanskaya/","0"]
[null,null,null,"1.6","Сведения о необходимой валовой выручке на соответствующий период, тыс руб",{"$f":"SUM(F27:F29)","v":22576.370000000003},null,"0"]
[null,"О",null,"1.6.1","с 01.01.2019 по 31.12.2019",11117.79,null,"0"]
[null,"О",null,"1.6.2","с 01.01.2020 по 31.12.2020",11458.58,null,"0"]
[null,null,null,null,"Добавить НВВ"]
[null,null,null,"1.7",{"$f":"\"Годовой объем отпущенной потребителям воды, \"&unit_tariff_useful_output","v":"Годовой объем отпущенной потребителям воды, тыс м3"},null,null,0]
[null,"О",null,"1.7.1","с 01.01.2019 по 31.12.2019",48.13,null,"0"]
[null,"О",null,"1.7.2","с 01.01.2020 по 31.12.2020",48.13,null,"0"]
[null,null,null,null,{"$f":"\"Годовой объем отпущенной потребителям воды, \"&unit_tariff_useful_output","v":"Годовой объем отпущенной потребителям воды, тыс м3"}]
[null,null,null,"1.8","Размер экономически обоснованных расходов, не учтенных при регулировании тарифов в предыдущий период регулирования (при их наличии), определенном в соответствии с основами ценообразования в сфере водоснабжения и водоотведения, утвержденными постановлением Правительства Российской Федерации от 13.05.2013 N 406 (Официальный интернет-портал правовой информации http://www.pravo.gov.ru, 15.05.2013), тыс руб",0,null,"0"]
[null,null,null,"1.9","Размер недополученных доходов регулируемой организацией (при их наличии), исчисленный в соответствии Основами ценообразования в сфере водоснабжения и водоотведения, утвержденными постановлением Правительства Российской Федерации от 13.05.2013 N 406 (Официальный интернет-портал правовой информации http://www.pravo.gov.ru, 15.05.2013), тыс руб",0,null,"0"]
[null,null,null,"2","Информация о способах приобретения, стоимости и об объемах товаров, необходимых для производства регулируемых товаров и(или) оказания регулируемых услуг регулируемой организацией",null,null,0]
[null,null,null,"2.1","Сведения о правовых актах, регламентирующих правила закупки (положение о закупках) в регулируемой организации","-","http://zakupki.ogk2.ru/main/announce/","0"]
[null,null,null,"2.2","Место размещения положения о закупках регулируемой организации","-","http://zakupki.ogk2.ru/main/announce/","0"]
[null,3,null,"2.3","Cведения о планировании закупочных процедур и результатах их проведения","-","http://zakupki.ogk2.ru/main/announce/","0"]
[null,null,null,null,"Добавить сведения"]

{"sheet":"Ссылки на публикации","index":9,"n_rows":15,"n_cols":8,"rows_kept":15,"cut":false,"hidden":true,"merged":[[10,0,11,0],[10,4,10,7],[12,0,13,0],[12,4,12,7],[4,3,4,7],[5,3,5,7]]}
[]
[]
[]
[]
[null,null,null,"Ссылки на публикации"]
[null,null,null,"ПУБЛИЧНОЕ АКЦИОНЕРНОЕ ОБЩЕСТВО \"ВТОРАЯ ГЕНЕРИРУЮЩАЯ КОМПАНИЯ ОПТОВОГО РЫНКА ЭЛЕКТРОЭНЕРГИИ\""]
[]
[]
[null,null,null,"№ п/п","Содержание","Наименование сайта","Дата размещения информации","Адрес страницы сайта в сети \"Интернет\", на которой размещена информация"]
[null,null,null,"1","2","3","4","5"]
["1",null,null,{"$f":"A11","v":"1"},"Информация о способах приобретения, стоимости и объемах товаров, необходимых для производства регулируемых товаров и (или) оказания регулируемых услуг регулируемой организацией, содержит сведения о правовых актах, регламентирующих правила закупки (положение о закупках) в регулируемой организации, а также о месте размещения положения о закупках регулируемой организации, информации о планировании конкурсных процедур и результатах их проведения (п. 25 Постановления Правительства Российской Федерации от 17 января 2013 г. N 6 \"О стандартах раскрытия информации в сфере водоснабжения и водоотведения\")                        \n\n"]
[null,null,null,{"$f":"A11&\".1\"","v":"1.1"},"Сайт организации в сети Интернет",null,""]
["2",null,null,{"$f":"A13","v":"2"},"Информация о предложении регулируемой организации об установлении тарифов в сфере горячего водоснабжения на очередной период регулирования (п.26 Постановления Правительства Российской Федерации от 17 января 2013 г. N 6 \"О стандартах раскрытия информации в сфере водоснабжения и водоотведения\")"]
[null,null,null,{"$f":"A13&\".1\"","v":"2.1"},"Сайт организации в сети Интернет"]
[null,null,null,null,"Добавить"]

{"sheet":"Комментарии","index":10,"n_rows":13,"n_cols":5,"rows_kept":13,"cut":false,"hidden":false,"merged":[[6,3,6,4],[7,3,7,4]]}
[]
[]
[]
[]
[]
[]
[null,null,null,"Комментарии"]
[null,null,null,"ПУБЛИЧНОЕ АКЦИОНЕРНОЕ ОБЩЕСТВО \"ВТОРАЯ ГЕНЕРИРУЮЩАЯ КОМПАНИЯ ОПТОВОГО РЫНКА ЭЛЕКТРОЭНЕРГИИ\""]
[]
[null,null,null,"№ п/п","Комментарий"]
[null,null,null,"1","2"]
[null,null,null,0]
[null,null,null,null,"Добавить"]

{"sheet":"Проверка","index":11,"n_rows":4,"n_cols":4,"rows_kept":4,"cut":false,"hidden":false,"merged":[[1,1,1,3]]}
[]
[null,"Результат проверки"]
[]
[null,"Ссылка","Причина","Статус"]

{"sheet":"AllSheetsInThisWorkbook","index":12,"n_rows":24,"n_cols":2,"rows_kept":24,"cut":false,"hidden":true,"merged":[]}
["Расчетные листы","Скрытые листы"]
["Инструкция","AllSheetsInThisWorkbook"]
["Лог обновления","TEHSHEET"]
["Титульный","et_union_hor"]
["Список МО","et_union_vert"]
["Стандарты","modInfo"]
["Ссылки на публикации","modRegion"]
["Комментарии","modReestr"]
["Проверка","modfrmReestr"]
[null,"modUpdTemplMain"]
[null,"REESTR_ORG"]
[null,"modClassifierValidate"]
[null,"modProv"]
[null,"modHyp"]
[null,"modList00"]
[null,"modList01"]
[null,"modList02"]
[null,"modList03"]
[null,"modfrmDateChoose"]
[null,"modComm"]
[null,"modThisWorkbook"]
[null,"REESTR_MO"]
[null,"modfrmReestrMR"]
[null,"modfrmCheckUpdates"]

{"sheet":"TEHSHEET","index":13,"n_rows":85,"n_cols":23,"rows_kept":85,"cut":false,"hidden":true,"merged":[[0,20,0,21],[0,19,1,19],[0,22,1,22]]}
["REGION",null,"year_list","logical","Месяц\n(MONTH)","Квартал\n(QUARTER)","Месяц\n(kind_of_publication)","Режим налогообложения\n/kind_of_NDS/","Номер СЦХВ(СЦВО)\n/SKI_number/","Единица измерения объема оказываемых услуг ГВС\n/kind_of_unit_GVS/","Метод регулирования\n/kind_of_control_method/",null,null,"версия шаблона\n (DocProp_Version)","6.0",null,null,null,"виды групп товаров\n/kind_group_rates/","Одноставочный","Двухставочный",null,"Полезный отпуск"]
["Алтайский край",null,2013,"да","январь","I квартал","На официальном сайте организации","общий","1","тыс.куб.м/сутки","метод экономически обоснованных расходов (затрат)",null,null,"код шаблона\n(DocProp_TemplateCode)","JKH.OPEN.INFO.QUARTER.GVS",null,null,null,null,null,{"$f":"IF(group_rates=$S$8,\"нагрузка\",\"потребление\")","v":"потребление"},{"$f":"IF(group_rates=$S$8,\"протяженность сети\",\"содержание\")","v":"содержание"}]
["Амурская область",null,2014,"нет","февраль","II квартал","На сайте регулирующего органа","общий с учетом освобождения от уплаты НДС","2","Гкал/час","метод индексации установленных тарифов",null,null,"сфера\n(TSphere)","ГВС",null,null,null,"единица измерения для листа Стандарты\n/unit_tariff/","руб/м3","руб/м3"," тыс руб в месяц/м3/час","тыс м3"]
["Архангельская область",null,2015,null,"март","III квартал",null,"специальный (упрощенная система налогообложения, система налогообложения для сельскохозяйственных товаропроизводителей)","3","куб.м/час","метод обеспечения доходности инвестированного капитала",null,null,"сфера(латиница)\n(TSphere_trans)","GVS",null,null,null,"тариф на питьевую воду (питьевое водоснабжение)","руб/м3","руб/м3"," тыс руб в месяц/м3/час","тыс м3"]
["Астраханская область",null,2016,null,"апрель","IV квартал",null,null,"4",null,"метод сравнения аналогов",null,null,"сфера расширено\n(TSphere_full)","горячего водоснабжения",null,null,null,"тариф на техническую воду","руб/м3","руб/м3"," тыс руб в месяц/м3/час","тыс м3"]
["Белгородская область",null,2017,null,"май",null,null,"НДС для общего режима налогообложения\n/kind_of_NDS_tariff/","5",null,"метод установления фиксированных тарифов",null,null,null,null,null,null,null,"тариф на транспортировку воды","руб/м3","руб/м3"," тыс руб в месяц/м3/час","тыс м3"]
["Брянская область",null,null,null,"июнь",null,null,"тариф указан с НДС для плательщиков НДС","6",null,"метод установления предельных тарифов",null,null,null,null,null,null,null,"тариф на подвоз воды","руб/м3","-","-","тыс м3"]
["Владимирская область",null,null,null,"июль",null,null,"тариф указан без НДС для плательщиков НДС","7",null,null,null,null,null,null,null,null,null,"тариф на подключение к централизованной системе холодного водоснабжения","-","руб/м3/час","руб/км","тыс м3"]
["Волгоградская область",null,null,null,"август",null,null,null,"8"]
["Вологодская область",null,null,null,"сентябрь",null,null,null,"9"]
["Воронежская область",null,null,null,"октябрь",null,null,"НДС для прочих режимов налогообложения\n/kind_of_NDS_tariff_etc/","10"]
["г.Байконур",null,null,null,"ноябрь",null,null,"тариф для организаций не являющихся плательщиками НДС","11"]
["г. Москва",null,null,null,"декабрь",null,null,null,"12"]
["г.Санкт-Петербург",null,null,null,null,null,null,null,"13"]
["Еврейская автономная область",null,null,null,null,null,null,null,"14"]
["Забайкальский край",null,null,null,null,null,null,null,"15"]
["Ивановская область",null,null,null,null,null,null,null,"16"]
["Иркутская область",null,null,null,null,null,null,null,"17"]
["Кабардино-Балкарская республика",null,null,null,null,null,null,null,"18"]
["Калининградская область",null,null,null,null,null,null,null,"19"]
["Калужская область",null,null,null,null,null,null,null,"20"]
["Камчатский край"]
["Карачаево-Черкесская республика"]
["Кемеровская область"]
["Кировская область"]
["Костромская область"]
["Краснодарский край"]
["Красноярский край"]
["Курганская область"]
["Курская область"]
["Ленинградская область"]
["Липецкая область"]
["Магаданская область"]
["Московская область"]
["Мурманская область"]
["Ненецкий автономный округ"]
["Нижегородская область"]
["Новгородская область"]
["Новосибирская область"]
["Омская область"]
["Оренбургская область"]
["Орловская область"]
["Пензенская область"]
["Пермский край"]
["Приморский край"]
["Псковская область"]
["Республика Адыгея"]
["Республика Алтай"]
["Республика Башкортостан"]
["Республика Бурятия"]
["Республика Дагестан"]
["Республика Ингушетия"]
["Республика Калмыкия"]
["Республика Карелия"]
["Республика Коми"]
["Республика Марий Эл"]
["Республика Мордовия"]
["Республика Саха (Якутия)"]
["Республика Северная Осетия-Алания"]
["Республика Татарстан"]
["Республика Тыва"]
["Республика Хакасия"]
["Ростовская область"]
["Рязанская область"]
["Самарская область"]
["Саратовская область"]
["Сахалинская область"]
["Свердловская область"]
["Смоленская область"]
["Ставропольский край"]
["Тамбовская область"]
["Тверская область"]
["Томская область"]
["Тульская область"]
["Тюменская область"]
["Удмуртская республика"]
["Ульяновская область"]
["Хабаровский край"]
["Ханты-Мансийский автономный округ"]
["Челябинская область"]
["Чеченская республика"]
["Чувашская республика"]
["Чукотский автономный округ"]
["Ямало-Ненецкий автономный округ"]
["Ярославская область"]

{"sheet":"et_union_hor","index":14,"n_rows":43,"n_cols":7,"rows_kept":43,"cut":false,"hidden":true,"merged":[[15,0,16,0],[3,4,4,4],[3,3,4,3],[15,4,15,7],[27,0,29,0],[27,1,29,1]]}
[]
["et_List01","et_List01_1"]
[]
[null,null,null,null,null,1]
[null,null,null,null,null,null,"Добавить МО"]
[]
[]
["et_Comm"]
[]
[]
[]
[]
["et_List03"]
[]
[]
[null,null,null,{"$f":"A16","v":0}]
[null,null,null,{"$f":"A16&\".1\"","v":".1"},"Сайт организации в сети Интернет"]
[]
[]
[]
["et_List02_1"]
[]
[null,null,null,null,{"$f":"\"с \"&periodStart & \" по \" & periodEnd","v":"с 01.01.2019 по 31.12.2020"}]
[]
[]
["et_List02_2"]
[]
[null,null,null,{"$f":"A28","v":0},{"$f":"\"с \"&periodStart & \" по \" & periodEnd & IF(double_rate_tariff=\"да\",,\", \"&unit_tariff_single_rate)","v":"с 01.01.2019 по 31.12.2020, руб/м3"}]
[null,null,null,{"$f":"D28&\".1\"","v":"0.1"},{"$f":"TEHSHEET!$U$2&\", \" & unit_tariff_double_rate_p","v":"потребление, руб/м3"}]
[null,null,null,{"$f":"D28&\".2\"","v":"0.2"},{"$f":"TEHSHEET!$V$2&\", \" & unit_tariff_double_rate_c","v":"содержание,  тыс руб в месяц/м3/час"}]
[]
[]
["et_List02_3"]
[]
[null,null,null,null,{"$f":"\"с \"&periodStart & \" по \" & periodEnd","v":"с 01.01.2019 по 31.12.2020"}]
[]
[]
["et_List02_4"]
[]
[null,null,null,null,{"$f":"\"с \"&periodStart & \" по \" & periodEnd","v":"с 01.01.2019 по 31.12.2020"}]
[]
[]
["et_List02_5"]

{"sheet":"et_union_vert","index":15,"n_rows":0,"n_cols":0,"rows_kept":0,"cut":false,"hidden":true,"merged":[]}

{"sheet":"modInfo","index":16,"n_rows":17,"n_cols":2,"rows_kept":17,"cut":false,"hidden":true,"merged":[]}
[null,"Титульный"]
[null,"Для выбора того или иного источника публикации выполните двойной щелчок по синей ячейке напротив соответствующего источника.\nВНИМАНИЕ! Если Вы снимаете галочку с пункта, то будут скрыты и очищены соответствующие строки на листе \"Ссылки на публикации\"!\n\nОпубликование перечисленных в шаблоне показателей на сайте организации в сети Интернет и в печатных изданиях не обязательно, если данный шаблон предоставлен по системе ЕИАС (региональный сегмент)."]
[null,"Обязательное опубликование на официальном сайте органа исполнительной власти субъекта Российской Федерации в области государственного регулирования тарифов (на официальном сайте органа местного самоуправления поселения или городского округа в случае передачи законом субъекта Российской Федерации полномочий по утверждению тарифов в сфере водоснабжения и водоотведения органам местного самоуправления) предусмотрено пунктом 3 (а) постановления Правительства №6 от 17.01.2013"]
[null,"Задайте период регулирования, выбрав даты начала и окончания очередного периода регулирования из календаря (иконка справа от указанной ячейки), либо введите дату непосредственно в ячейку в формате - 'ДД.ММ.ГГГГ'"]
[null,"Шаблон заполняется раздельно по каждому виду тарифа"]
[null,"Ссылки на публикации"]
[null,"Вводите адрес сайта, не нарушая цвет ячейки /если копируете гиперссылку из браузера, то выполните двойной щелчок по ячейке и только после этого можете вставить скопированный элемент/"]
[null,"Обосновывающие материалы (документы) необходимо загружать с помощью \"ЕИАС Мониторинг\". Ссылка на инструкцию по загрузке обосновывающих материалов (документов) расположена на листе 'Инструкция' в п.'Методология заполнения'.\n\nВвводите ссылку, не нарушая цвет ячейки /если копируете гиперссылку из браузера, то выполните двойной щелчок по ячейке и только после этого можете вставить скопированный элемент/."]
[null,"Если для какого-либо пункта графы 'Наименование источника (сайта или печатного издания)' информация не раскрывалась, то в соответствующем поле укажите - 'не раскрывалась'"]
[null,"Список МО"]
[null,"В случае, если тариф не дифференцируется по системам коммунальной инфраструктуры, перечислите все муниципальные районы, в которых организация осуществляет услуги холодного водоснабжения"]
[null,"В случае, если тариф не дифференцируется по системам коммунальной инфраструктуры, перечислите все муниципальные образования, в которых организация осуществляет услуги холодного водоснабжения"]
[null,"Признак дифференциации тарифа"]
[null,"В случае, если тариф не дифференцируется по системам холодного водоснабжения, укажите '1'. Введите значение от 1 до 100, чтобы указать очередной условный порядковый номер системы холодного водоснабжения"]
[null,"Стандарты"]
[null,"В качестве примечания Вы можете указать единицу измерения"]
[null,{"$f":"\"Укажите в ячейке \" & ADDRESS(ROW(Стандарты!$F$25),COLUMN(Стандарты!$F$25),4,TRUE) & \", ссылку на сведения о долгосрочных параметрах регулирования, размещенные в сети Интернет, либо укажите в ячейке \" & ADDRESS(ROW(Стандарты!$G$25),COLUMN(Стандарты!$G$25),4,TRUE) & \" ссылку на материалы Хранилища\"","v":"Укажите в ячейке F25, ссылку на сведения о долгосрочных параметрах регулирования, размещенные в сети Интернет, либо укажите в ячейке G25 ссылку на материалы Хранилища"}]

{"sheet":"modRegion","index":17,"n_rows":0,"n_cols":0,"rows_kept":0,"cut":false,"hidden":true,"merged":[]}

{"sheet":"modReestr","index":18,"n_rows":0,"n_cols":0,"rows_kept":0,"cut":false,"hidden":true,"merged":[]}

{"sheet":"modfrmReestr","index":19,"n_rows":0,"n_cols":0,"rows_kept":0,"cut":false,"hidden":true,"merged":[]}

{"sheet":"modUpdTemplMain","index":20,"n_rows":0,"n_cols":0,"rows_kept":0,"cut":false,"hidden":true,"merged":[]}

{"sheet":"REESTR_ORG","index":21,"n_rows":1,"n_cols":11,"rows_kept":1,"cut":false,"hidden":true,"merged":[]}
["№","NSRF","MR_NAME","OKTMO_MR_NAME","MO_NAME","OKTMO_NAME","RST_ORG_ID","ORG_NAME","INN_NAME","KPP_NAME","VDET_NAME"]

{"sheet":"modClassifierValidate","index":22,"n_rows":0,"n_cols":0,"rows_kept":0,"cut":false,"hidden":true,"merged":[]}

{"sheet":"modHyp","index":23,"n_rows":0,"n_cols":0,"rows_kept":0,"cut":false,"hidden":true,"merged":[]}

{"sheet":"modList03","index":24,"n_rows":0,"n_cols":0,"rows_kept":0,"cut":false,"hidden":true,"merged":[]}

{"sheet":"modfrmDateChoose","index":25,"n_rows":0,"n_cols":0,"rows_kept":0,"cut":false,"hidden":true,"merged":[]}

{"sheet":"modComm","index":26,"n_rows":0,"n_cols":0,"rows_kept":0,"cut":false,"hidden":true,"merged":[]}

{"sheet":"modThisWorkbook","index":27,"n_rows":0,"n_cols":0,"rows_kept":0,"cut":false,"hidden":true,"merged":[]}

{"sheet":"REESTR_MO","index":28,"n_rows":296,"n_cols":4,"rows_kept":296,"cut":false,"hidden":true,"merged":[]}
["№","МР","МО","МО_ОКТМО"]
[1,"Александро-Невский муниципальный район","Александро-Невский муниципальный район",61620000]
[2,"Александро-Невский муниципальный район","Александро-Невское",61620151]
[3,"Александро-Невский муниципальный район","Благовское",61620405]
[4,"Александро-Невский муниципальный район","Борисовское",61620410]
[5,"Александро-Невский муниципальный район","Каширинское",61620450]
[6,"Александро-Невский муниципальный район","Нижнеякимецкое",61620445]
[7,"Александро-Невский муниципальный район","Просеченское",61620460]
[8,"Город Касимов","Город Касимов",61705000]
[9,"Город Рязань","Город Рязань",61701000]
[10,"Город Сасово","Город Сасово",61710000]
[11,"Город Скопин","Город Скопин",61715000]
[12,"Ермишинский муниципальный район","Азеевское",61602405]
[13,"Ермишинский муниципальный район","Ермишинский муниципальный район",61602000]
[14,"Ермишинский муниципальный район","Ермишинское",61602151]
[15,"Ермишинский муниципальный район","Мердушинское",61602425]
[16,"Ермишинский муниципальный район","Надежкинское",61602430]
[17,"Ермишинский муниципальный район","Нарминское",61602435]
[18,"Ермишинский муниципальный район","Савватемское",61602440]
[19,"Захаровский муниципальный район","Безлыченское",61604412]
[20,"Захаровский муниципальный район","Большекоровинское",61604415]
[21,"Захаровский муниципальный район","Добро-Пчельское",61604430]
[22,"Захаровский муниципальный район","Елинское",61604432]
[23,"Захаровский муниципальный район","Захаровский муниципальный район",61604000]
[24,"Захаровский муниципальный район","Захаровское",61604440]
[25,"Захаровский муниципальный район","Плахинское",61604465]
[26,"Захаровский муниципальный район","Сменовское",61604425]
[27,"Кадомский муниципальный район","Восходское",61606405]
[28,"Кадомский муниципальный район","Енкаевское",61606410]
[29,"Кадомский муниципальный район","Кадомский муниципальный район",61606000]
[30,"Кадомский муниципальный район","Кадомское",61606151]
[31,"Кадомский муниципальный район","Котелинское",61606420]
[32,"Кадомский муниципальный район","Кущапинское",61606430]
[33,"Касимовский муниципальный район","Ардабьевское",61608403]
[34,"Касимовский муниципальный район","Ахматовское",61608406]
[35,"Касимовский муниципальный район","Булгаковское",61608439]
[36,"Касимовский муниципальный район","Гиблицкое",61608418]
[37,"Касимовский муниципальный район","Гусевское",61608154]
[38,"Касимовский муниципальный район","Дмитриевское",61608421]
[39,"Касимовский муниципальный район","Елатомское",61608156]
[40,"Касимовский муниципальный район","Ермоловское",61608424]
[41,"Касимовский муниципальный район","Ибердусское",61608430]
[42,"Касимовский муниципальный район","Касимовский муниципальный район",61608000]
[43,"Касимовский муниципальный район","Китовское",61608433]
[44,"Касимовский муниципальный район","Клетинское",61608434]
[45,"Касимовский муниципальный район","Которовское",61608442]
[46,"Касимовский муниципальный район","Крутоярское",61608453]
[47,"Касимовский муниципальный район","Лашманское",61608454]
[48,"Касимовский муниципальный район","Лощининское",61608471]
[49,"Касимовский муниципальный район","Новодеревенское",61608456]
[50,"Касимовский муниципальный район","Овчинниковское",61608459]
[51,"Касимовский муниципальный район","Первинское",61608462]
[52,"Касимовский муниципальный район","Погостинское",61608465]
[53,"Касимовский муниципальный район","Савостьяновское",61608468]
[54,"Касимовский муниципальный район","Сынтульское",61608160]
[55,"Касимовский муниципальный район","Токаревское",61608474]
[56,"Касимовский муниципальный район","Торбаевское",61608412]
[57,"Касимовский муниципальный район","Шостьинское",61608480]
[58,"Клепиковский муниципальный район","Алексеевское",61610403]
[59,"Клепиковский муниципальный район","Болоньское",61610415]
[60,"Клепиковский муниципальный район","Бусаевское",61610418]
[61,"Клепиковский муниципальный район","Екшурское",61610451]
[62,"Клепиковский муниципальный район","Клепиковский муниципальный район",61610000]
[63,"Клепиковский муниципальный район","Колесниковское",61610448]
[64,"Клепиковский муниципальный район","Криушинское",61610454]
[65,"Клепиковский муниципальный район","Молькинское",61610475]
[66,"Клепиковский муниципальный район","Ненашкинское",61610487]
[67,"Клепиковский муниципальный район","Оськинское",61610472]
[68,"Клепиковский муниципальный район","Спас-Клепиковское",61610101]
[69,"Клепиковский муниципальный район","Тумское",61610154]
[70,"Клепиковский муниципальный район","Уткинское",61610421]
[71,"Кораблинский муниципальный район","Бобровинское",61612408]
[72,"Кораблинский муниципальный район","Кипчаковское",61612424]
[73,"Кораблинский муниципальный район","Ключанское",61612428]
[74,"Кораблинский муниципальный район","Ковалинское",61612432]
[75,"Кораблинский муниципальный район","Кораблинский муниципальный район",61612000]
[76,"Кораблинский муниципальный район","Кораблинское",61612101]
[77,"Кораблинский муниципальный район","Молвинослободское",61612456]
[78,"Кораблинский муниципальный район","Незнановское",61612448]
[79,"Кораблинский муниципальный район","Пехлецкое",61612460]
[80,"Кораблинский муниципальный район","Пустотинское",61612464]
[81,"Кораблинский муниципальный район","Яблоневское",61612484]
[82,"Милославский муниципальный район","Богородицкое",61615408]
[83,"Милославский муниципальный район","Большеподовечинское",61615412]
[84,"Милославский муниципальный район","Горняцкое",61615422]
[85,"Милославский муниципальный район","Кочуровское",61615428]
[86,"Милославский муниципальный район","Липяговское",61615432]
[87,"Милославский муниципальный район","Милославский муниципальный район",61615000]
[88,"Милославский муниципальный район","Павловское",61615456]
[89,"Милославский муниципальный район","Центральное",61615160]
[90,"Милославский муниципальный район","Чернавское",61615472]
[91,"Милославский муниципальный район","городское поселение Милославское",61615151]
[92,"Милославский муниципальный район","сельское поселение Милославское",61615444]
[93,"Михайловский муниципальный район","Виленское",61617406]
[94,"Михайловский муниципальный район","Голдинское",61617412]
[95,"Михайловский муниципальный район","Горностаевское",61617415]
[96,"Михайловский муниципальный район","Грязновское",61617418]
[97,"Михайловский муниципальный район","Жмуровское",61617421]
[98,"Михайловский муниципальный район","Ильичевское",61617476]
[99,"Михайловский муниципальный район","Каморинское",61617433]
[100,"Михайловский муниципальный район","Красновское",61617439]
[101,"Михайловский муниципальный район","Михайловский муниципальный район",61617000]
[102,"Михайловский муниципальный район","Михайловское",61617101]
[103,"Михайловский муниципальный район","Новопанское",61617448]
[104,"Михайловский муниципальный район","Октябрьское",61617154]
[105,"Михайловский муниципальный район","Печерниковское",61617451]
[106,"Михайловский муниципальный район","Поярковское",61617457]
[107,"Михайловский муниципальный район","Рачатниковское",61617460]
[108,"Михайловский муниципальный район","Слободское",61617467]
[109,"Михайловский муниципальный район","Стрелецко-Высельское",61617470]
[110,"Михайловский муниципальный район","Трепольское",61617473]
[111,"Михайловский муниципальный район","Чуриковское",61617485]
[112,"Михайловский муниципальный район","Щетининское",61617491]
[113,"Пителинский муниципальный район","Ермо-Николаевское",61623420]
[114,"Пителинский муниципальный район","Нестеровское",61623425]
[115,"Пителинский муниципальный район","Пеньковское",61623435]
[116,"Пителинский муниципальный район","Пителинский муниципальный район",61623000]
[117,"Пителинский муниципальный район","Пителинское",61623151]
[118,"Пителинский муниципальный район","Потапьевское",61623450]
[119,"Пронский муниципальный район","Малинищинское",61625435]
[120,"Пронский муниципальный район","Мамоновское",61625440]
[121,"Пронский муниципальный район","Новомичуринское",61625114]
[122,"Пронский муниципальный район","Октябрьское",61625445]
[123,"Пронский муниципальный район","Орловское",61625450]
[124,"Пронский муниципальный район","Погореловское",61625455]
[125,"Пронский муниципальный район","Пронский муниципальный район",61625000]
[126,"Пронский муниципальный район","Пронское",61625151]
[127,"Пронский муниципальный район","Тырновское",61625405]
[128,"Путятинский муниципальный район","Береговское",61626406]
[129,"Путятинский муниципальный район","Большеекатериновское",61626403]
[130,"Путятинский муниципальный район","Карабухинское",61626424]
[131,"Путятинский муниципальный район","Песочинское",61626432]
[132,"Путятинский муниципальный район","Путятинский муниципальный район",61626000]
[133,"Путятинский муниципальный район","Путятинское",61626436]
[134,"Путятинский муниципальный район","Строевское",61626412]
[135,"Рыбновский муниципальный район","Алешинское",61627404]
[136,"Рыбновский муниципальный район","Баграмовское",61627406]
[137,"Рыбновский муниципальный район","Батуринское",61627408]
[138,"Рыбновский муниципальный район","Вакинское",61627416]
[139,"Рыбновский муниципальный район","Глебковское",61627418]
[140,"Рыбновский муниципальный район","Истобниковское",61627424]
[141,"Рыбновский муниципальный район","Кузьминское",61627436]
[142,"Рыбновский муниципальный район","Пионерское",61627476]
[143,"Рыбновский муниципальный район","Пощуповское",61627456]
[144,"Рыбновский муниципальный район","Рыбновский муниципальный район",61627000]
[145,"Рыбновский муниципальный район","Рыбновское",61627101]
[146,"Рыбновский муниципальный район","Селецкое",61627460]
[147,"Рыбновский муниципальный район","Ходынинское",61627472]
[148,"Рыбновский муниципальный район","Чурилковское",61627464]
[149,"Ряжский муниципальный район","Алешинское",61630405]
[150,"Ряжский муниципальный район","Дегтянское",61630415]
[151,"Ряжский муниципальный район","Журавинское",61630420]
[152,"Ряжский муниципальный район","Петровское",61630450]
[153,"Ряжский муниципальный район","Поплевинское",61630460]
[154,"Ряжский муниципальный район","Ряжский муниципальный район",61630000]
[155,"Ряжский муниципальный район","Ряжское",61630101]
[156,"Рязанский муниципальный район","Варсковское",61634402]
[157,"Рязанский муниципальный район","Высоковское",61634409]
[158,"Рязанский муниципальный район","Вышгородское",61634412]
[159,"Рязанский муниципальный район","Дубровическое",61634427]
[160,"Рязанский муниципальный район","Дядьковское",61634430]
[161,"Рязанский муниципальный район","Екимовское",61634433]
[162,"Рязанский муниципальный район","Заборьевское",61634436]
[163,"Рязанский муниципальный район","Заокское",61634439]
[164,"Рязанский муниципальный район","Искровское",61634485]
[165,"Рязанский муниципальный район","Листвянское",61634457]
[166,"Рязанский муниципальный район","Льговское",61634460]
[167,"Рязанский муниципальный район","Мурминское",61634401]
[168,"Рязанский муниципальный район","Окское",61634475]
[169,"Рязанский муниципальный район","Подвязьевское",61634478]
[170,"Рязанский муниципальный район","Полянское",61634483]
[171,"Рязанский муниципальный район","Рязанский муниципальный район",61634000]
[172,"Рязанский муниципальный район","Семеновское",61634495]
[173,"Рязанский муниципальный район","Турлатовское",61634496]
[174,"Рязанский муниципальный район","Тюшевское",61634498]
[175,"Сапожковский муниципальный район","Березниковское",61637435]
[176,"Сапожковский муниципальный район","Канинское",61637410]
[177,"Сапожковский муниципальный район","Михеевское",61637405]
[178,"Сапожковский муниципальный район","Морозово-Борковское",61637430]
[179,"Сапожковский муниципальный район","Сапожковский муниципальный район",61637000]
[180,"Сапожковский муниципальный район","Сапожковское",61637151]
[181,"Сараевский муниципальный район","Алексеевское",61640403]
[182,"Сараевский муниципальный район","Борецкое",61640412]
[183,"Сараевский муниципальный район","Бычковское",61640415]
[184,"Сараевский муниципальный район","Высоковское",61640424]
[185,"Сараевский муниципальный район","Желобовское",61640430]
[186,"Сараевский муниципальный район","Кривское",61640436]
[187,"Сараевский муниципальный район","Можарское",61640442]
[188,"Сараевский муниципальный район","Муравлянское",61640448]
[189,"Сараевский муниципальный район","Напольновское",61640451]
[190,"Сараевский муниципальный район","Новобокинское",61640454]
[191,"Сараевский муниципальный район","Сараевский муниципальный район",61640000]
[192,"Сараевский муниципальный район","Сараевское",61640151]
[193,"Сараевский муниципальный район","Сысоевское",61640469]
[194,"Сараевский муниципальный район","Телятниковское",61640472]
[195,"Сараевский муниципальный район","Ягодновское",61640481]
[196,"Сасовский муниципальный район","Агломазовское",61642403]
[197,"Сасовский муниципальный район","Алешинское",61642406]
[198,"Сасовский муниципальный район","Батьковское",61642415]
[199,"Сасовский муниципальный район","Берестянское",61642408]
[200,"Сасовский муниципальный район","Гавриловское",61642418]
[201,"Сасовский муниципальный район","Глядковское",61642420]
[202,"Сасовский муниципальный район","Демушкинское",61642466]
[203,"Сасовский муниципальный район","Каргашинское",61642424]
[204,"Сасовский муниципальный район","Кустаревское",61642433]
[205,"Сасовский муниципальный район","Малостуденецкое",61642439]
[206,"Сасовский муниципальный район","Нижнемальцевское",61642448]
[207,"Сасовский муниципальный район","Новоберезовское",61642454]
[208,"Сасовский муниципальный район","Придорожное",61642464]
[209,"Сасовский муниципальный район","Сасовский муниципальный район",61642000]
[210,"Сасовский муниципальный район","Сотницынское",61642470]
[211,"Сасовский муниципальный район","Трудолюбовское",61642463]
[212,"Скопинский муниципальный район","Вослебовское",61644412]
[213,"Скопинский муниципальный район","Горловское",61644415]
[214,"Скопинский муниципальный район","Ильинское",61644430]
[215,"Скопинский муниципальный район","Корневское",61644445]
[216,"Скопинский муниципальный район","Павелецкое",61644154]
[217,"Скопинский муниципальный район","Побединское",61644157]
[218,"Скопинский муниципальный район","Полянское",61644478]
[219,"Скопинский муниципальный район","Скопинский муниципальный район",61644000]
[220,"Скопинский муниципальный район","Успенское",61644488]
[221,"Скопинский муниципальный район","Шелемишевское",61644496]
[222,"Спасский муниципальный район","Выжелесское",61646409]
[223,"Спасский муниципальный район","Гавриловское",61646415]
[224,"Спасский муниципальный район","Заречинское",61646434]
[225,"Спасский муниципальный район","Ижевское",61646443]
[226,"Спасский муниципальный район","Исадское",61646446]
[227,"Спасский муниципальный район","Кирицкое",61646452]
[228,"Спасский муниципальный район","Киструсское",61646488]
[229,"Спасский муниципальный район","Кутуковское",61646455]
[230,"Спасский муниципальный район","Лакашинское",61646458]
[231,"Спасский муниципальный район","Михальское",61646461]
[232,"Спасский муниципальный район","Панинское",61646473]
[233,"Спасский муниципальный район","Перкинское",61646476]
[234,"Спасский муниципальный район","Собчаковское",61646485]
[235,"Спасский муниципальный район","Спасск-Рязанское",61646101]
[236,"Спасский муниципальный район","Спасский муниципальный район",61646000]
[237,"Спасский муниципальный район","Троицкое",61646493]
[238,"Спасский муниципальный район","Федотьевское",61646498]
[239,"Старожиловский муниципальный район","Гребневское",61648420]
[240,"Старожиловский муниципальный район","Гулынское",61648425]
[241,"Старожиловский муниципальный район","Истьинское",61648435]
[242,"Старожиловский муниципальный район","Ленинское",61648438]
[243,"Старожиловский муниципальный район","Мелекшинское",61648440]
[244,"Старожиловский муниципальный район","Старожиловский муниципальный район",61648000]
[245,"Старожиловский муниципальный район","Старожиловское",61648151]
[246,"Старожиловский муниципальный район","Столпянское",61648460]
[247,"Ухоловский муниципальный район","Калининское",61650430]
[248,"Ухоловский муниципальный район","Коноплинское",61650440]
[249,"Ухоловский муниципальный район","Ольховское",61650450]
[250,"Ухоловский муниципальный район","Смолеевское",61650455]
[251,"Ухоловский муниципальный район","Ухоловский муниципальный район",61650000]
[252,"Ухоловский муниципальный район","Ухоловское",61650151]
[253,"Чучковский муниципальный район","Аладьинское",61653405]
[254,"Чучковский муниципальный район","Завидовское",61653420]
[255,"Чучковский муниципальный район","Остро-Пластиковское",61653435]
[256,"Чучковский муниципальный район","Пертовское",61653440]
[257,"Чучковский муниципальный район","Ункосовское",61653450]
[258,"Чучковский муниципальный район","Чучковский муниципальный район",61653000]
[259,"Чучковский муниципальный район","Чучковское",61653151]
[260,"Шацкий муниципальный район","Агишевское",61656406]
[261,"Шацкий муниципальный район","Борковское",61656415]
[262,"Шацкий муниципальный район","Желанновское",61656418]
[263,"Шацкий муниципальный район","Каверинское",61656421]
[264,"Шацкий муниципальный район","Казачинское",61656427]
[265,"Шацкий муниципальный район","Кермисинское",61656433]
[266,"Шацкий муниципальный район","Куплинское",61656439]
[267,"Шацкий муниципальный район","Кучасьевское",61656442]
[268,"Шацкий муниципальный район","Лесно-Конобеевское",61656445]
[269,"Шацкий муниципальный район","Лесно-Полянское",61656448]
[270,"Шацкий муниципальный район","Новочернеевское",61656451]
[271,"Шацкий муниципальный район","Ольховское",61656454]
[272,"Шацкий муниципальный район","Печинское",61656457]
[273,"Шацкий муниципальный район","Польно-Ялтуновское",61656463]
[274,"Шацкий муниципальный район","Чернослободское",61656484]
[275,"Шацкий муниципальный район","Шацкий муниципальный район",61656000]
[276,"Шацкий муниципальный район","Шацкое",61656101]
[277,"Шацкий муниципальный район","Ямбирнское",61656493]
[278,"Шиловский муниципальный район","Аделинское",61658403]
[279,"Шиловский муниципальный район","Борковское",61658475]
[280,"Шиловский муниципальный район","Боровское",61658415]
[281,"Шиловский муниципальный район","Ерахтурское",61658424]
[282,"Шиловский муниципальный район","Желудевское",61658427]
[283,"Шиловский муниципальный район","Задубровское",61658430]
[284,"Шиловский муниципальный район","Занино-Починковское",61658445]
[285,"Шиловский муниципальный район","Ибредское",61658473]
[286,"Шиловский муниципальный район","Инякинское",61658436]
[287,"Шиловский муниципальный район","Краснохолмское",61658439]
[288,"Шиловский муниципальный район","Лесновское",61658157]
[289,"Шиловский муниципальный район","Мосоловское",61658448]
[290,"Шиловский муниципальный район","Санское",61658472]
[291,"Шиловский муниципальный район","Тереховское",61658478]
[292,"Шиловский муниципальный район","Тимошкинское",61658481]
[293,"Шиловский муниципальный район","Тырновское",61658484]
[294,"Шиловский муниципальный район","Шиловский муниципальный район",61658000]
[295,"Шиловский муниципальный район","Шиловское",61658151]

{"sheet":"modfrmReestrMR","index":29,"n_rows":0,"n_cols":0,"rows_kept":0,"cut":false,"hidden":true,"merged":[]}

{"sheet":"modfrmCheckUpdates","index":30,"n_rows":0,"n_cols":0,"rows_kept":0,"cut":false,"hidden":true,"merged":[]}